Cogmind - Beta 12 X4 @@@ ROGUE MODE // 2022.12.15 @ 12:36:49 Player: Runia Result: Destroyed by G-34 Mercenary with Small Laser Performance ------------- Evolutions (0) 0 Regions Visited (2) 400 Robots Destroyed (24) 120 Value Destroyed (572) 572 Prototype IDs (2) 40 Alien Tech Used (0) 0 Bonus (0) 0 TOTAL SCORE: 1132 Bonus ------- None Cogmind --------- Core Integrity 0/250 Matter 276/300 Energy 250/250 System Corruption 0% Temperature Cool (18) Movement Treading (160) Location -10/Mines Parts ------- > --- POWER (1) -------- Ion Engine > --- PROPULSION (2) --- Light Treads Improved Treads > --- UTILITY (2) ------ Large Storage Unit Improved Targeting Computer > --- WEAPON (2) ------- Light Assault Rifle Light Assault Rifle > --- INVENTORY (15) --- Light Treads Light Treads Improved Treads Improved Treads High-capacity Matter Pod (139) Structural Scanner Improved Targeting Computer Light Assault Rifle Light Assault Rifle Grenade Launcher Grenade Launcher Peak State ------------ > --- POWER ------------ Light Nuclear Core > --- PROPULSION ------- Improved Treads Improved Treads > --- UTILITY ---------- Large Storage Unit Improved Targeting Computer > --- WEAPON ----------- Assault Rifle Light Assault Rifle > --- INVENTORY -------- Light Treads Light Treads Light Treads Improved Treads Improved Treads High-capacity Matter Pod Improved Targeting Computer Light Assault Rifle Grenade Launcher [Rating: 13] Favorites ----------- Power Ion Engine Engine Ion Engine Power Core Light Nuclear Core Propulsion Improved Treads Treads Improved Treads Leg Aluminum Leg Utility Improved Targeting Computer Storage Large Storage Unit Processor Improved Targeting Computer Weapon Light Assault Rifle Energy Gun Small Laser Ballistic Gun Light Assault Rifle Launcher Grenade Launcher Build | -11 -10 -10 ------- Run | Scr Mat Min Slots Evolved . | . . . Power . | . . . Propulsion . | . . . Utility . | . . . Weapon . | . . . Parts Attached 15 | 2 9 4 Power 4 | . 4 . Engine 3 | . 3 . Core 1 | . 1 . Reactor . | . . . Propulsion 5 | 2 2 1 Treads 5 | 2 2 1 Leg . | . . . Wheel . | . . . Hover . | . . . Flight . | . . . Utility 2 | . 2 . Device . | . . . Storage 1 | . 1 . Processor 1 | . 1 . Hackware . | . . . Protection . | . . . Artifact . | . . . Weapon 4 | . 1 3 Energy Gun 1 | . 1 . Energy Cannon . | . . . Ballistic Gun 2 | . . 2 Ballistic Cannon . | . . . Launcher 1 | . . 1 Special Weapon . | . . . Impact Weapon . | . . . Slashing Weapon . | . . . Piercing Weapon . | . . . Special Melee Weapon . | . . . Unidentified Prototypes . | . . . Parts Lost 2 | . 1 1 Power . | . . . Propulsion 1 | . . 1 Utility . | . . . Weapon 1 | . 1 . Highest Loss Streak 1 | . 1 1 To Critical Strikes . | . . . Average Slot Usage (%) 99 | . 98 100 Engine 12 | . 11 14 Core 1 | . 2 . Treads 28 | . 28 28 Storage 14 | . 14 14 Processor 13 | . 12 14 Energy Gun 3 | . 4 2 Ballistic Gun 24 | . 23 25 Naked Turns . | . . . Heaviest Build 28 | 11 28 27 Greatest Support 46 | 40 46 46 Greatest Overweight (x) 1 | . . 1 Average Overweight (x) . | . . . Largest Inventory Capacity 15 | 8 15 15 Average Capacity 13 | 8 12 15 Most Carried 12 | 6 12 12 Average Carried 9 | 4 8 11 Final Capacity 15 | 8 15 15 Final Carried 12 | 2 12 11 Class Distribution -------------------- 100% | Mutant Dominant Class ---------------- Mutant | -10/Materials Mutant | -10/Mines Resources | -11 -10 -10 ----------- Run | Scr Mat Min Matter Collected 686 | 200 338 148 Remotely . | . . . Salvage Created 721 | . 468 253 Parts 54 | . 34 20 Haulers Intercepted 1 | . 1 . Recyclers Shooed 1 | . 1 . Parts Field Recycled . | . . . Retrieved Matter . | . . . Parts Self-Destructed . | . . . Prevented . | . . . Kills | -11 -10 -10 ------- Run | Scr Mat Min Combat Hostiles Destroyed 18 | . 10 8 Guns 16 | . 10 6 AOE 2 | . . 2 Classes Destroyed 6 | . 5 1 Tunneler 2 | . . 2 Hauler 1 | . 1 . Recycler 1 | . 1 . Watcher 2 | . 2 . Swarmer 5 | . 3 2 Grunt 13 | . 7 6 Best Kill Streak 5 | . 4 5 Combat Bots Only 3 | . 3 3 Max Kills in Single Turn 3 | . 1 3 Gunslinging . | . . . Exploded 1 | . . 1 Melee . | . . . Uniques/NPCs Destroyed . | . . . Combat | -11 -10 -10 -------- Run | Scr Mat Min Damage Taken 918 | . 542 376 Core 251 | . 93 158 Absorbed by Shields . | . . . Core Remaining (%) 100 | 100 . . Volleys Fired 81 | . 55 26 Largest 2 | . 2 2 Hottest 60 | . 60 60 Shots Fired 159 | . 109 50 Gun 157 | . 109 48 Cannon . | . . . Launcher 2 | . . 2 Special . | . . . Kinetic 135 | . 93 42 Thermal 22 | . 16 6 Explosive 2 | . . 2 Electromagnetic . | . . . Robot Hit Streak 13 | . 9 13 Robot Miss Streak 4 | . 4 3 Penetration Max . | . . . Secondary Targets . | . . . Shots Hit Robots 114 | . 76 38 Core Hits 49 | . 29 20 Critical Kills . | . . . Critical Parts Destroyed . | . . . Critical Strikes . | . . . Melee Attacks . | . . . Impact . | . . . Slashing . | . . . Piercing . | . . . Sneak Attacks . | . . . Combat Hostiles . | . . . Follow-up Attacks . | . . . Damage Inflicted 1333 | . 790 543 Guns 1103 | . 790 313 Cannons . | . . . Explosions 230 | . . 230 Melee . | . . . Ramming . | . . . Kinetic 959 | . 678 281 Thermal 144 | . 112 32 Explosive 230 | . . 230 Electromagnetic . | . . . Impact . | . . . Slashing . | . . . Piercing . | . . . Highest Corruption . | . . . Average Corruption . | . . . Corruption Purged . | . . . Corruption Blocked . | . . . Overload Shots . | . . . Overflow Damage . | . . . Projectiles . | . . . Explosions . | . . . Melee . | . . . Knockbacks . | . . . Impact . | . . . Kinetic . | . . . Secondary . | . . . Self-Inflicted Damage 26 | . . 26 Shots 2 | . . 2 Rammed . | . . . Targets Rammed . | . . . Kicked . | . . . Crushed . | . . . Highest Temperature 108 | . 108 40 Average Temperature 24 | . 28 12 Received Heat Transfer 390 | . 258 132 Siege Activations . | . . . Robots Corrupted . | . . . Combat Hostiles . | . . . Parts Fried . | . . . Impact Corruptions . | . . . Robots Melted . | . . . Combat Hostiles . | . . . Parts Melted . | . . . Heat Transferred 325 | . 250 75 Parts Sabotaged . | . . . Parts Stolen . | . . . Parts Stripped . | . . . Power Chain Reactions . | . . . Missiles Intercepted . | . . . Alert | -11 -10 -10 ------- Run | Scr Mat Min Peak Influence 266 | . 266 193 Initial 103 | . . 103 Average 84 | . 106 68 Maximum Alert Level 1 | . 1 . Low Security (%) 89 | 100 76 100 Level 1 10 | . 23 . Level 2 . | . . . Level 3 . | . . . Level 4 . | . . . Level 5 . | . . . High Security . | . . . Max Security . | . . . Squads Dispatched 2 | . 2 . Investigation 2 | . 2 . Extermination . | . . . Reinforcement . | . . . Assault . | . . . Garrison . | . . . Intercept . | . . . Searches Triggered . | . . . Construction Impeded . | . . . Haulers Reinforced . | . . . Active Scanning Responses . | . . . Cargo Convoy Interrupts . | . . . Stealth | -11 -10 -10 --------- Run | Scr Mat Min Distress Signals 3 | . . 3 Communications Jammed . | . . . Distress Signals . | . . . Times Spotted 31 | . 17 14 Peak Tracking Total 3 | . 3 3 Tactical Retreats 3 | . 1 2 Traps | -11 -10 -10 ------- Run | Scr Mat Min Traps Triggered 2 | . 2 . Indirectly . | . . . Trap Hack Attempts . | . . . Triggered . | . . . Disarmed . | . . . Reprogrammed . | . . . Reused . | . . . Traps Extracted . | . . . Installed . | . . . Triggered . | . . . Machines | -11 -10 -10 ---------- Run | Scr Mat Min Machines Disabled . | . . . Max in Single Turn . | . . . Machines Sabotaged . | . . . Overloaded Fab Kills . | . . . Hacking | -11 -10 -10 --------- Run | Scr Mat Min Machines Accessed 6 | . 6 . Terminals 5 | . 5 . Fabricators . | . . . Repair Stations . | . . . Recycling Units 1 | . 1 . Scanalyzers . | . . . Garrison Access . | . . . Total Hacks 20 | . 20 . Successful 6 | . 6 . Failed 14 | . 14 . Catastrophic 2 | . 2 . Database Lockouts . | . . . Manual 16 | . 16 . Terminals 18 | . 18 . Fabricators . | . . . Repair Stations . | . . . Recycling Units 2 | . 2 . Scanalyzers . | . . . Garrison Access . | . . . Terminal Hacks 3 | . 3 . Prototype ID Bank 1 | . 1 . Locate Traps 1 | . 1 . Zone Layout 1 | . 1 . Fabricator Hacks . | . . . Repair Station Hacks . | . . . Recycling Unit Hacks 1 | . 1 . Retrieve Components 1 | . 1 . Scanalyzer . | . . . Garrison Access Hacks . | . . . Unauthorized Hacks 2 | . 2 . Terminals 1 | . 1 . Botnet 1 | . 1 . Fabricators . | . . . Repair Stations . | . . . Recycling Units 1 | . 1 . Tunnel 1 | . 1 . Scanalyzers . | . . . Garrison Access . | . . . Data Cores Recovered . | . . . Used . | . . . Hacking Detections 5 | . 5 . Full Trace Events 2 | . 2 . Feedback Events . | . . . Feedback Blocked . | . . . Robot Schematics Acquired . | . . . Robots Built . | . . . Authchips . | . . . Time . | . . . Total Robot Build Rating . | . . . Part Schematics Acquired . | . . . Parts Built . | . . . Authchips . | . . . Time . | . . . Total Part Build Rating . | . . . Parts Repaired . | . . . Time . | . . . Parts Recycled . | . . . Recycled Matter . | . . . Retrieved Matter . | . . . Retrieved Components 9 | . 9 . Parts Scanalyzed . | . . . Part Schematics Acquired . | . . . Parts Damaged . | . . . Bothacking | -11 -10 -10 ------------ Run | Scr Mat Min Used RIF Installer . | . . . Robots Hacked . | . . . Non-combat . | . . . Combat . | . . . Robot Hacks Applied . | . . . Relay Couplers Released . | . . . Fabnet Peak Effective % . | . . . Robots Rewired . | . . . Allies Hacked . | . . . Hacks Repelled . | . . . Allies | -11 -10 -10 -------- Run | Scr Mat Min Total Allies . | . . . Largest Group . | . . . Highest-Rated Group . | . . . Highest-Rated Ally . | . . . Total Orders . | . . . Ally Attacks . | . . . Total Damage . | . . . Kills . | . . . Allies Corrupted . | . . . Allies Melted . | . . . Intel | -11 -10 -10 ------- Run | Scr Mat Min Robot Analysis Total . | . . . Derelict Logs Recovered 2 | . . 2 Drone Launches . | . . . Drone Recoveries . | . . . Exploration | -11 -10 -10 ------------- Run | Scr Mat Min Turns Passed 1833 | 5 794 1034 Spaces Moved 543 | 1 375 167 Core . | . . . Treads 543 | 1 375 167 Legs . | . . . Wheels . | . . . Hover . | . . . Flight . | . . . Fastest Speed 160 | 160 160 160 Average Speed 160 | 160 160 160 Slowest Speed 240 | 160 160 240 Overloaded Moves . | . . . Propulsion Burnouts . | . . . Robots Hopped . | . . . Cave-ins Triggered . | . . . Exploration Rate (%) 39 | 2 81 34 Regions Visited 2 Branch Regions 1 Pre-discovered Areas 2 | . 1 1 Known Exits Taken . | . . . Unknown Exits Taken 2 | 1 1 . Scrap Searched . | . . . Spaces Dug . | . . . Terrain Destroyed 14 | . . 14 Melee . | . . . Projectile . | . . . AOE 14 | . . 14 Terrain Rammed . | . . . Walls Destroyed . | . . . Machines Disabled . | . . . Actions | -11 -10 -10 --------- Run | Scr Mat Min Total 1367 | 6 470 891 Wait 711 | . 18 693 Move 541 | . 374 167 Hop . | . . . Pick Up 10 | . 10 . Fast Attach 6 | . 5 1 Attach 4 | 2 1 1 Detach . | . . . Swap 5 | . 3 2 Drop 9 | 4 4 1 Fire 81 | . 55 26 Melee . | . . . Ram . | . . . Kick . | . . . Crush . | . . . Escape Stasis . | . . . Rewire . | . . . Trap . | . . . Miscellaneous . | . . . Route ------- -11/Scrapyard -10/Materials (discovered 3 exits: [*Mat] / [*Min x2]) -10/Mines History --------- Turn | Location | Event 6 | -11/Scrapyard | Discovered new exit (range 0) 6 | -11/Scrapyard | Entered Materials 174 | -10/Materials | Discovered new exit (range 16) 269 | -10/Materials | Discovered new exit (range 16) 316 | -10/Materials | Build established: Mutant 754 | -10/Materials | Discovered new exit (range 7) 800 | -10/Materials | Entered Mines 845 | -10/Mines | Met a Derelict bent on vengeance 940 | -10/Mines | Learned location of Zion (-7) 966 | -10/Mines | Core integrity fell below 50% 979 | -10/Mines | Learned Materials garrison access intel 1037 | -10/Mines | Excavation squad dispatched 1037 | -10/Mines | A large section of the Mines collapsed 1287 | -10/Mines | Excavation squad dispatched 1537 | -10/Mines | Excavation squad dispatched 1717 | -10/Mines | Core integrity fell below 20% 1787 | -10/Mines | Excavation squad dispatched 1834 | -10/Mines | Destroyed by G-34 Mercenary with Small Laser Last Messages --------------- 01723_ Acquired 3 matter. 01757_ G-34 Mercenary destroyed. 01771_ Acquired 44 matter. 01778_ U-05 Engineer builds a Wall. 01781_ U-05 Engineer lays Concrete. 01783_ U-05 Engineer builds a Wall. 01787_ ALERT: Derelict activity in mines confirmed. Dispatching additional escorted excavation squad. 01787_ U-05 Engineer lays Concrete. 01788_ U-05 Engineer builds a Wall. 01793_ U-05 Engineer lays Concrete. 01804_ U-05 Engineer builds a Wall. 01805_ U-05 Engineer lays Concrete. 01810_ U-05 Engineer builds a Wall. 01812_ G-34 Mercenary destroyed. 01812_ K-01 Serf sends out distress signal. 01813_ U-05 Engineer lays Concrete. 01815_ U-05 Engineer builds a Wall. 01823_ G-34 Mercenary destroyed. 01827_ U-05 Engineer lays Concrete. Map ----- +----------------------------------------------------+ | ????????????? ?????#### #?????????? | | ????????????# ?????# # #?????????? | | ???????????# ???????# ##?####???? | | ??????????# ???????## ! ## #???? | | ?????##### ?????????## [ =#???? | | ?????# ! ??????????## ! ##???? | | ?????? ????????????## ###????? | | ?????? ?????????????## #??????? | | ??????? ???????????????# #??????? | | ???????!=*????????######## #??????? | | ???????#%#????????# #??????? | | ???????#[#????????# ########??????? | | ???????# #????????# #?????????????? | | ???##??# #????????# #?????????????? | | ??## ### #######??# #?????????????? | | ??# # # #??# #?????????????? | | ??# #### #?????????????? | | ??# " =### #?????????????? | | ??##" * %=% ### ###?????????????? | | ???###%! t= ! # #???????????????? | | ?????### # # ####???????????????? | | ???????# # # ###??????????????????? | | ???????### ####???????????????????? | | ?????????#=#??????????????????????? | | ?????????#[#??????????????????????? | | ?????????#@#??????????????????????? | | ?????????#g#??????????????????????? | | ?????????#g#??????????????????????? | | ?????????#g######?????????????????? | | ?????????#!t #?????????????????? | | ?????????###### % ???????????? | | ??????????????????????????????????? | | ??????????????????????????????????? | | ??????????????????????????????????? | | ??????????????????????????????????? | | ??????????????????????????????????? | | ??????????????????????????????????? | | ??????????????????????????????????? | | ??????????????????????????????????? | | ??????????????????????????????????? | | ??????????????????????????????????? | | ??????????????????????????????????? | | ??????????????????????????????????? | | ??????????????????????????????????? | | ??????????????????????????????????? | | ??????????????????????????????????? | | ??????????????????????????????????? | | ??????????????????????????????????? | | ??????????????????????????????????? | | ??????????????????????????????????? | +----------------------------------------------------+ Best States ------------- Heat Dissipation 25 Energy Generation 14 Energy Capacity 250 Matter Stores 300 Matter Capacity 300 Sight Range 16 Terrain Scan Density 10 Evasion (%) 40 Targeting Accuracy 6 Recoil Reduction 2 Item Schematics ----------------- None Robot Schematics ------------------ None Fabricated ------------ Nothing Alien Tech Used ----------------- None Achievements -------------- None Challenges ------------ None Game ------ Seed LargeImprinterLog Manual? 0 Play Time 00:09:20 Cumulative 722.5 hours Start 2022.12.15 @ 12:27:56 End 2022.12.15 @ 12:36:49 Sessions 1 Manual Loads 0 Difficulty Rogue Special Mode None Game No. 643 Rogue 643 Adventurer 0 Explorer 0 Win Type - Total 33 Types 14/5/6/1/1/1/4/1/0 Lore% 93 Gallery% 97 Achievement% 80 Wizard Run 0 Options --------- ASCII 0 Keyboard 0 Movement Mouse Keybinds 1 Fullscreen 2 Font 24/Smallcaps Map View 76x50 Tactical HUD 1 Map Filters NONE Filters NONE Steam 1 RUN: 40f9b00a-207c-4b4a-a018-4a737c5fdced